Cogmind - Beta 10.1 @@@ ROGUE MODE // 2020.10.18 @ 19:50:12 Player: WayneKnight Result: Self-destructed Performance ------------- Evolutions (3) 1500 Regions Visited (10) 2000 Robots Destroyed (133) 665 Value Destroyed (4039) 4039 Prototype IDs (18) 360 Alien Tech Used (0) 0 Bonus (1006) 1006 TOTAL SCORE: 9570 Bonus ------- High Alert Combat Kills 156 Follower Combat Kills 237 Entered Garrisons 200 Used RIF Installer 500 Friendly Fire -87 Cogmind --------- Core Integrity 657/700 Matter 144/300 Energy 100/100 System Corruption 0% Temperature Cool (4) Movement Core (1700) Ox33 Location -7/Waste Parts ------- > --- POWER (1) -------- (None) > --- PROPULSION (3) --- (None) > --- UTILITY (6) ------ High-capacity Storage Unit High-capacity Storage Unit High-capacity Storage Unit Improved Signal Interpreter > --- WEAPON (3) ------- Mini Assault Cannon > --- INVENTORY (28) --- Light Nuclear Core Light Treads Light Treads Light Treads Light Treads Advanced Treads Medium Storage Unit Large Storage Unit Advanced Sensor Array Advanced Sensor Array Improved Propulsion Shielding Hardened Heavy Armor Plating System Shield Relay Coupler [Duelist] (26) Relay Coupler [Sentry] (23) Thief Drone Bay Precision Beam Rifle Heavy Assault Rifle Improved Assault Rifle High-powered Shotgun High-powered Shotgun Enhanced Autogun Advanced EMP Blaster Grenade Launcher Katana Peak State ------------ > --- POWER ------------ Reinforced Deuterium Engine > --- PROPULSION ------- Light Treads Light Treads Armored Treads > --- UTILITY ---------- High-capacity Storage Unit High-capacity Storage Unit High-capacity Storage Unit Advanced Sensor Array Improved Signal Interpreter Improved Light Armor Plating > --- WEAPON ----------- Cooled Plasma Cannon Heavy Assault Rifle Mini Assault Cannon > --- INVENTORY -------- Light Deuterium Engine Light Nuclear Core Light Treads Light Treads Light Treads Light Treads Advanced Treads Compact Wheel Medium Storage Unit Large Storage Unit Advanced Sensor Array Advanced Sensor Array Light Armor Plating System Shield Relay Coupler [Duelist] Relay Coupler [Sentry] Thief Drone Bay Heavy EM Shotgun Precision Beam Rifle Improved Assault Rifle High-powered Shotgun High-powered Shotgun Enhanced Autogun Enhanced Autogun Advanced EMP Blaster Grenade Launcher Katana [Rating: 40] Favorites ----------- Power Reinforced Deuterium Engine Engine Reinforced Deuterium Engine Propulsion Light Treads Treads Light Treads Leg Aluminum Leg Wheel Compact Wheel Hover Unit Aerolev Unit Utility High-capacity Storage Unit Device Advanced Sensor Array Storage High-capacity Storage Unit Processor Improved Signal Interpreter Protection Improved Light Armor Plating Weapon Heavy Assault Rifle Energy Gun Heavy EM Shotgun Energy Cannon Cooled Plasma Cannon Ballistic Gun Heavy Assault Rifle Ballistic Cannon Mini Assault Cannon Launcher Grenade Launcher Build | -11 -10 -10 -9 -9 -8 -8 -8 -8 -7 -7 ------- Run | Scr Mat Min Mat Min Mat Gar Mat Sto Fac Was Slots Evolved 6 | . . . 2 . 2 . . . 2 . Power . | . . . . . . . . . . . Propulsion 1 | . . . 1 . . . . . . . Utility 4 | . . . 1 . 1 . . . 2 . Weapon 1 | . . . . . 1 . . . . . Parts Attached 121 | . 18 5 19 5 27 7 4 28 4 4 Power 12 | . 4 . 3 1 2 . . 1 . 1 Engine 12 | . 4 . 3 1 2 . . 1 . 1 Core . | . . . . . . . . . . . Reactor . | . . . . . . . . . . . Propulsion 41 | . 7 2 11 2 10 2 1 6 . . Treads 33 | . 4 1 9 1 10 2 1 5 . . Leg 3 | . . 1 2 . . . . . . . Wheel 4 | . 3 . . 1 . . . . . . Hover 1 | . . . . . . . . 1 . . Flight . | . . . . . . . . . . . Utility 14 | . 2 . 1 . 6 1 1 . 2 1 Device 2 | . . . . . . 1 1 . . . Storage 6 | . 2 . 1 . 3 . . . . . Processor 1 | . . . . . . . . . 1 . Hackware . | . . . . . . . . . . . Protection 5 | . . . . . 3 . . . 1 1 Artifact . | . . . . . . . . . . . Weapon 54 | . 5 3 4 2 9 4 2 21 2 2 Energy Gun 5 | . . . . . . . . 5 . . Energy Cannon 3 | . . . . . . . . 3 . . Ballistic Gun 38 | . 5 2 4 2 9 2 2 11 1 . Ballistic Cannon 2 | . . . . . . . . . 1 1 Launcher 6 | . . 1 . . . 2 . 2 . 1 Special Weapon . | . . . . . . . . . . . Impact Weapon . | . . . . . . . . . . . Slashing Weapon . | . . . . . . . . . . . Piercing Weapon . | . . . . . . . . . . . Special Melee Weapon . | . . . . . . . . . . . Unidentified Prototypes 9 | . . . . . . . . 8 1 . Parts Lost 26 | . 1 1 2 4 6 4 . 3 . 5 Power 6 | . 1 . 1 1 1 . . 1 . 1 Propulsion 6 | . . 1 1 2 . 1 . . . 1 Utility 3 | . . . . . 1 . . . . 2 Weapon 11 | . . . . 1 4 3 . 2 . 1 Highest Loss Streak 5 | . 1 1 1 2 4 2 . 2 . 5 Average Slot Usage (%) 99 | . 98 99 99 99 99 99 100 99 100 96 Engine 10 | . 13 14 10 11 9 9 9 9 7 6 Treads 24 | . 20 18 25 27 25 27 27 26 23 22 Leg 1 | . . 7 7 . . . . . . . Wheel 1 | . 6 1 . 4 . . . . . . Device 3 | . . . . . . 8 9 9 7 7 Storage 28 | . 27 28 32 33 27 27 27 27 23 23 Protection 1 | . . . . . 8 . . . 7 6 Ballistic Gun 24 | . 27 28 21 22 26 26 27 22 15 9 Naked Turns . | . . . . . . . . . . . Heaviest Build 129 | 9 41 41 61 61 123 123 121 126 129 129 Greatest Support 63 | 20 40 40 63 60 60 60 60 60 60 60 Greatest Overweight (x) 3 | . 2 2 2 1 3 2 2 3 2 2 Average Overweight (x) 1 | . 1 1 . . 1 2 1 1 2 2 Largest Inventory Capacity 28 | 6 16 16 22 22 28 28 28 28 28 28 Average Capacity 24 | 6 15 16 21 22 27 28 28 28 28 28 Most Carried 28 | 6 16 16 22 22 28 28 28 28 28 28 Average Carried 22 | 6 10 15 20 21 25 27 27 27 27 27 Final Capacity 28 | 6 16 16 22 22 28 28 28 28 28 28 Final Carried 28 | 6 16 16 22 20 28 27 28 28 28 26 Class Distribution -------------------- 40% | Hauler-Skirmisher 21% | Mutant 16% | Hauler-Tank 14% | Hauler-Mutant 6% | Scavenger-Mutant Dominant Class ---------------- Mutant | -10/Materials Mutant | -10/Mines Hauler-Mutant | -9/Materials Scavenger-Mutant | -9/Mines Hauler-Tank | -8/Materials Hauler-Skirmisher | -8/Garrison Hauler-Skirmisher | -8/Materials Hauler-Skirmisher | -8/Storage Hauler-Skirmisher | -7/Factory Hauler-Mutant | -7/Waste Resources | -11 -10 -10 -9 -9 -8 -8 -8 -8 -7 -7 ----------- Run | Scr Mat Min Mat Min Mat Gar Mat Sto Fac Was Matter Collected 3583 | 200 488 176 450 184 854 435 104 592 . 100 Remotely . | . . . . . . . . . . . Salvage Created 4757 | . 503 287 549 231 1060 577 104 1123 . 323 Parts 269 | . 28 22 36 15 61 39 9 57 . 2 Haulers Intercepted 2 | . . . . . 2 . . . . . Recyclers Shooed 3 | . . . 2 . . . . 1 . . Parts Field Recycled . | . . . . . . . . . . . Retrieved Matter . | . . . . . . . . . . . Parts Self-Destructed . | . . . . . . . . . . . Prevented . | . . . . . . . . . . . Kills | -11 -10 -10 -9 -9 -8 -8 -8 -8 -7 -7 ------- Run | Scr Mat Min Mat Min Mat Gar Mat Sto Fac Was Combat Hostiles Destroyed 122 | . 16 11 14 12 22 19 2 25 . 1 Guns 112 | . 16 9 14 12 22 13 2 24 . . AOE 10 | . . 2 . . . 6 . 1 . 1 Classes Destroyed 14 | . 2 1 5 2 3 . . . . 1 Worker 2 | . . 1 . . 1 . . . . . Builder 2 | . . . 1 . . . . 1 . . Hauler 2 | . . . . . 2 . . . . . Recycler 2 | . . . 2 . . . . . . . Operator 3 | . . . 1 . 1 . . 1 . . Swarmer 46 | . 6 7 7 8 4 7 . 7 . . Grunt 51 | . 10 4 4 2 9 10 . 12 . . Brawler 3 | . . . 1 . 1 . . 1 . . Duelist 3 | . . . . . 1 . . 2 . . Sentry 13 | . . . 2 . 4 2 2 3 . . Demolisher 1 | . . . . 1 . . . . . . Hunter 3 | . . . . . 3 . . . . . Compactor 1 | . . . . . . . . . . 1 Assembled 1 | . . . . 1 . . . . . . Best Kill Streak 9 | . 3 4 6 3 4 9 2 7 . 1 Combat Bots Only 9 | . 3 3 4 3 4 9 2 7 . 1 Max Kills in Single Turn 2 | . 1 2 1 1 2 2 1 2 . 1 Gunslinging 1 | . . . . . 1 . . 1 . . Exploded 2 | . . 2 . . . 2 . 1 . 1 Melee . | . . . . . . . . . . . Uniques/NPCs Destroyed . | . . . . . . . . . . . Combat | -11 -10 -10 -9 -9 -8 -8 -8 -8 -7 -7 -------- Run | Scr Mat Min Mat Min Mat Gar Mat Sto Fac Was Damage Taken 6243 | . 662 287 826 714 1449 815 44 1157 . 289 Core 647 | . 69 78 84 94 202 13 . 64 . 43 Absorbed by Shields . | . . . . . . . . . . . Core Remaining (%) 61 | 100 . 41 . 55 . . . 49 . . Volleys Fired 317 | . 50 20 39 28 63 48 3 50 . 16 Largest 3 | . 2 2 2 2 3 3 3 3 . 2 Hottest 98 | . 40 40 50 48 70 71 66 98 . 73 Shots Fired 747 | . 100 38 78 55 188 132 9 127 . 20 Gun 719 | . 100 36 78 55 188 126 9 123 . 4 Cannon 6 | . . . . . . . . 2 . 4 Launcher 22 | . . 2 . . . 6 . 2 . 12 Special . | . . . . . . . . . . . Kinetic 702 | . 100 36 78 55 188 126 9 102 . 8 Thermal 1 | . . . . . . . . 1 . . Explosive 22 | . . 2 . . . 6 . 2 . 12 Electromagnetic 22 | . . . . . . . . 22 . . Robot Hit Streak 34 | . 9 8 11 15 26 17 5 34 . 32 Robot Miss Streak 6 | . 5 2 6 4 5 2 1 2 . 1 Penetration Max . | . . . . . . . . . . . Secondary Targets 21 | . 3 3 7 2 1 . . 5 . . Max Gunslinging Chain 1 | . 1 1 1 1 1 . . 1 . . Shots Hit Robots 527 | . 64 21 62 41 130 86 6 99 . 18 Core Hits 253 | . 30 23 27 16 59 38 4 49 . 7 Critical Hits 5 | . . . 2 . 1 1 . 1 . . Critical Kills 2 | . . . 1 . . 1 . . . . Critical Parts Destroyed 1 | . . . . . 1 . . . . . Melee Attacks . | . . . . . . . . . . . Impact . | . . . . . . . . . . . Slashing . | . . . . . . . . . . . Piercing . | . . . . . . . . . . . Sneak Attacks . | . . . . . . . . . . . Combat Hostiles . | . . . . . . . . . . . Follow-up Attacks . | . . . . . . . . . . . Damage Inflicted 9807 | . 725 510 1206 588 1743 1665 115 2070 . 1185 Guns 7541 | . 694 268 1141 588 1700 1046 115 1925 . 64 Cannons 104 | . . . . . . . . . . 104 Explosions 1905 | . . 185 . . . 619 . 84 . 1017 Melee . | . . . . . . . . . . . Ramming 257 | . 31 57 65 . 43 . . 61 . . Kinetic 7136 | . 694 268 1141 588 1700 1046 115 1416 . 168 Thermal 84 | . . . . . . . . 84 . . Explosive 1821 | . . 185 . . . 619 . . . 1017 Electromagnetic 509 | . . . . . . . . 509 . . Impact . | . . . . . . . . . . . Slashing . | . . . . . . . . . . . Piercing . | . . . . . . . . . . . Highest Corruption 5 | . . . . . . . . 5 . . Average Corruption 5 | . . . . . . . . 5 . . Corruption Purged . | . . . . . . . . . . . Effects 13 | . . . . . . . . 13 . . Message Errors 3 | . . . . . . . . 3 . . Matter Fused 3 | . . . . . . . . 3 . . Energy Discharges 2 | . . . . . . . . 2 . . Data Loss (minor) 3 | . . . . . . . . 3 . . Data Loss (major) 1 | . . . . . . . . 1 . . Misfires 1 | . . . . . . . . 1 . . Overload Shots . | . . . . . . . . . . . Overflow Damage 50 | . . 8 5 . . 25 . 12 . . Projectiles . | . . . . . . . . . . . Explosions 33 | . . 8 . . . 25 . . . . Melee 17 | . . . 5 . . . . 12 . . Knockbacks 1 | . . 1 . . . . . . . . Impact 1 | . . 1 . . . . . . . . Kinetic . | . . . . . . . . . . . Secondary . | . . . . . . . . . . . Self-Inflicted Damage 195 | . 2 14 6 . . . . 109 . 64 Shots 6 | . . 1 . . . . . 3 . 2 Rammed 24 | . 5 4 6 . 3 . . 6 . . Targets Rammed 24 | . 5 4 6 . 3 . . 6 . . Kicked . | . . . . . . . . . . . Crushed . | . . . . . . . . . . . Highest Temperature 339 | . 25 17 8 11 88 78 6 339 . 22 Average Temperature 53 | . 9 9 2 4 21 20 3 121 . 7 Received Heat Transfer 1834 | . 297 78 192 142 333 396 18 378 . . Effects 4 | . . . . . . . . 4 . . Shutdowns 1 | . . . . . . . . 1 . . Interference 3 | . . . . . . . . 3 . . Siege Activations . | . . . . . . . . . . . Robots Corrupted . | . . . . . . . . . . . Combat Hostiles . | . . . . . . . . . . . Parts Fried 2 | . . . . . . . . 2 . . Impact Corruptions 2 | . . . 1 . . . . 1 . . Robots Melted . | . . . . . . . . . . . Combat Hostiles . | . . . . . . . . . . . Parts Melted . | . . . . . . . . . . . Heat Transferred 100 | . . . . . . . . 100 . . Parts Sabotaged . | . . . . . . . . . . . Parts Stolen . | . . . . . . . . . . . Parts Stripped . | . . . . . . . . . . . Power Chain Reactions 2 | . . . . . . . . 2 . . Missiles Intercepted . | . . . . . . . . . . . Alert | -11 -10 -10 -9 -9 -8 -8 -8 -8 -7 -7 ------- Run | Scr Mat Min Mat Min Mat Gar Mat Sto Fac Was Peak Influence 722 | . 188 202 232 255 451 722 426 428 156 80 Initial 351 | . . 7 20 10 24 55 351 94 156 54 Average 189 | . 49 82 104 115 155 438 386 228 156 57 Maximum Alert Level 3 | . . 1 1 1 2 3 2 2 . . Low Security (%) 68 | 100 100 90 97 91 77 27 . 44 100 100 Level 1 18 | . . 9 2 8 18 3 31 54 . . Level 2 12 | . . . . . 3 60 68 1 . . Level 3 . | . . . . . . 7 . . . . Level 4 . | . . . . . . . . . . . Level 5 . | . . . . . . . . . . . High Security . | . . . . . . . . . . . Max Security . | . . . . . . . . . . . Squads Dispatched 13 | . 2 . 4 . 5 . . 2 . . Investigation 2 | . 1 . 1 . . . . . . . Extermination . | . . . . . . . . . . . Reinforcement 6 | . 1 . 3 . 2 . . . . . Assault 2 | . . . . . . . . 2 . . Garrison 3 | . . . . . 3 . . . . . Intercept . | . . . . . . . . . . . Construction Impeded . | . . . . . . . . . . . Haulers Reinforced . | . . . . . . . . . . . Stealth | -11 -10 -10 -9 -9 -8 -8 -8 -8 -7 -7 --------- Run | Scr Mat Min Mat Min Mat Gar Mat Sto Fac Was Distress Signals 8 | . 4 . 1 . 2 . . 1 . . Communications Jammed . | . . . . . . . . . . . Distress Signals . | . . . . . . . . . . . Times Spotted 187 | . 29 16 23 15 37 20 2 41 . 4 Peak Tracking Total 6 | . 6 3 5 4 6 6 2 6 . 3 Tactical Retreats 9 | . 1 1 1 . 2 1 . 3 . . Traps | -11 -10 -10 -9 -9 -8 -8 -8 -8 -7 -7 ------- Run | Scr Mat Min Mat Min Mat Gar Mat Sto Fac Was Traps Triggered 10 | . 1 . 2 . . 5 . 1 1 . Indirectly . | . . . . . . . . . . . Trap Hack Attempts . | . . . . . . . . . . . Triggered . | . . . . . . . . . . . Disarmed . | . . . . . . . . . . . Reprogrammed . | . . . . . . . . . . . Reused . | . . . . . . . . . . . Traps Extracted . | . . . . . . . . . . . Installed . | . . . . . . . . . . . Triggered . | . . . . . . . . . . . Machines | -11 -10 -10 -9 -9 -8 -8 -8 -8 -7 -7 ---------- Run | Scr Mat Min Mat Min Mat Gar Mat Sto Fac Was Machines Disabled 2 | . . . . . . 1 . 1 . . Max in Single Turn 1 | . . . . . . 1 . 1 . . Garrison Access 1 | . . . . . . . . 1 . . Garrison Relay 1 | . . . . . . 1 . . . . Machines Sabotaged . | . . . . . . . . . . . Garrisons Compromised . | . . . . . . . . . . . Overloaded Fab Kills . | . . . . . . . . . . . Fab Network Shutdowns . | . . . . . . . . . . . Hacking | -11 -10 -10 -9 -9 -8 -8 -8 -8 -7 -7 --------- Run | Scr Mat Min Mat Min Mat Gar Mat Sto Fac Was Machines Accessed 36 | . 9 1 3 1 5 . 1 15 1 . Terminals 24 | . 6 . 1 1 3 . 1 11 1 . Fabricators . | . . . . . . . . . . . Repair Stations 4 | . 1 . 1 . 1 . . 1 . . Recycling Units 5 | . 2 . 1 . . . . 2 . . Scanalyzers . | . . . . . . . . . . . Garrison Access 2 | . . . . . 1 . . 1 . . Total Hacks 100 | . 30 1 7 5 12 . 1 43 1 . Successful 63 | . 16 1 5 2 8 . . 31 . . Failed 37 | . 14 . 2 3 4 . 1 12 1 . Catastrophic 6 | . . . . 1 2 . 1 1 1 . Database Lockouts . | . . . . . . . . . . . Manual 57 | . 16 . 3 4 9 . 1 23 1 . Terminals 77 | . 23 . 3 5 9 . 1 35 1 . Fabricators . | . . . . . . . . . . . Repair Stations 10 | . 4 . 2 . 2 . . 2 . . Recycling Units 10 | . 3 . 2 . . . . 5 . . Scanalyzers . | . . . . . . . . . . . Garrison Access 2 | . . . . . 1 . . 1 . . Terminal Hacks 27 | . 6 1 1 2 3 . . 14 . . Robot Analysis 4 | . 2 . . . 1 . . 1 . . Prototype ID Bank 6 | . 3 . . . 1 . . 2 . . Open Door 5 | . . 1 . . . . . 4 . . Level Access Points 1 | . . . . . . . . 1 . . Branch Access Points 1 | . . . . 1 . . . . . . Alert Level 1 | . . . . 1 . . . . . . Unreport Threat 3 | . 1 . 1 . 1 . . . . . Locate Traps 4 | . . . . . . . . 4 . . Hauler Manifests 1 | . . . . . . . . 1 . . Zone Layout 1 | . . . . . . . . 1 . . Fabricator Hacks . | . . . . . . . . . . . Repair Station Hacks 9 | . 3 . 2 . 2 . . 2 . . Scan Component 5 | . 2 . 1 . 1 . . 1 . . Repair 4 | . 1 . 1 . 1 . . 1 . . Recycling Unit Hacks 8 | . 3 . 2 . . . . 3 . . Report Inventory 5 | . 2 . 1 . . . . 2 . . Retrieve Components 3 | . 1 . 1 . . . . 1 . . Scanalyzer . | . . . . . . . . . . . Garrison Access Hacks 2 | . . . . . 1 . . 1 . . Unlock Access 1 | . . . . . 1 . . . . . Seal Access 1 | . . . . . . . . 1 . . Unauthorized Hacks 17 | . 4 . . . 2 . . 11 . . Terminals 17 | . 4 . . . 2 . . 11 . . Track 6 | . 1 . . . . . . 5 . . Botnet 10 | . 3 . . . 2 . . 5 . . Operators 1 | . . . . . . . . 1 . . Fabricators . | . . . . . . . . . . . Repair Stations . | . . . . . . . . . . . Recycling Units . | . . . . . . . . . . . Scanalyzers . | . . . . . . . . . . . Garrison Access . | . . . . . . . . . . . Data Cores Recovered 1 | . . . . . . . . 1 . . Used . | . . . . . . . . . . . Hacking Detections 29 | . 9 . 2 1 3 . 1 12 1 . Full Trace Events . | . . . . . . . . . . . Feedback Events . | . . . . . . . . . . . Feedback Blocked . | . . . . . . . . . . . Robot Schematics Acquired . | . . . . . . . . . . . Robots Built . | . . . . . . . . . . . Matter . | . . . . . . . . . . . Time . | . . . . . . . . . . . Total Robot Build Rating . | . . . . . . . . . . . Part Schematics Acquired . | . . . . . . . . . . . Parts Built . | . . . . . . . . . . . Matter . | . . . . . . . . . . . Time . | . . . . . . . . . . . Total Part Build Rating . | . . . . . . . . . . . Parts Repaired 4 | . 1 . 1 . 1 . . 1 . . Time 116 | . 26 . 26 . 26 . . 38 . . Parts Recycled . | . . . . . . . . . . . Recycled Matter . | . . . . . . . . . . . Retrieved Matter . | . . . . . . . . . . . Retrieved Components 23 | . 3 . 10 . . . . 10 . . Parts Scanalyzed . | . . . . . . . . . . . Part Schematics Acquired . | . . . . . . . . . . . Parts Damaged . | . . . . . . . . . . . Bothacking | -11 -10 -10 -9 -9 -8 -8 -8 -8 -7 -7 ------------ Run | Scr Mat Min Mat Min Mat Gar Mat Sto Fac Was Used RIF Installer 1 | . . . . . . 1 . . . . Robots Hacked . | . . . . . . . . . . . Non-combat . | . . . . . . . . . . . Combat . | . . . . . . . . . . . Robot Hacks Applied . | . . . . . . . . . . . Relay Couplers Released 4 | . . . . . . 4 . . . . Machine Destruction 4 | . . . . . . 4 . . . . Robots Rewired . | . . . . . . . . . . . Allies Hacked . | . . . . . . . . . . . Hacks Repelled . | . . . . . . . . . . . Allies | -11 -10 -10 -9 -9 -8 -8 -8 -8 -7 -7 -------- Run | Scr Mat Min Mat Min Mat Gar Mat Sto Fac Was Total Allies 7 | . . 4 . . . . . 2 . 1 Largest Group 3 | . . 3 1 . . . . 2 . 1 Highest-Rated Group 62 | . . 40 31 . . . . 62 . 31 Highest-Rated Ally 31 | . . 31 31 . . . . 31 . 31 Total Orders . | . . . . . . . . . . . Ally Attacks 58 | . . 15 21 . . . . 10 . 12 Total Damage 896 | . . 156 358 . . . . 191 . 191 Kills 10 | . . 4 4 . . . . 2 . . Allies Corrupted . | . . . . . . . . . . . Allies Melted 1 | . . . 1 . . . . . . . Intel | -11 -10 -10 -9 -9 -8 -8 -8 -8 -7 -7 ------- Run | Scr Mat Min Mat Min Mat Gar Mat Sto Fac Was Robot Analysis Total 4 | . 2 . . . 1 . . 1 . . Derelict Logs Recovered 2 | . . . . 2 . . . . . . Drone Launches . | . . . . . . . . . . . Drone Recoveries . | . . . . . . . . . . . Exploration | -11 -10 -10 -9 -9 -8 -8 -8 -8 -7 -7 ------------- Run | Scr Mat Min Mat Min Mat Gar Mat Sto Fac Was Turns Passed 8375 | 2 862 963 963 583 1287 1061 460 1715 373 106 Spaces Moved 3613 | 2 460 506 358 256 448 436 239 695 181 32 Core . | . . . . . . . . . . . Treads 3205 | . 200 440 305 256 421 436 239 695 181 32 Legs 62 | 2 7 . 53 . . . . . . . Wheels 346 | . 253 66 . . 27 . . . . . Hover . | . . . . . . . . . . . Flight . | . . . . . . . . . . . Fastest Speed 100 | 120 100 120 150 160 130 203 183 183 203 203 Average Speed 181 | 120 137 169 171 176 193 203 186 198 203 203 Slowest Speed 225 | 120 180 180 180 180 220 203 203 225 203 203 Overloaded Moves . | . . . . . . . . . . . Propulsion Burnouts . | . . . . . . . . . . . Robots Hopped . | . . . . . . . . . . . Cave-ins Triggered . | . . . . . . . . . . . Exploration Rate (%) 41 | 1 78 83 36 41 36 56 16 80 6 26 Regions Visited 10 Branch Regions 3 Pre-discovered Areas 2 | . . . . 2 . . . . . . Known Exits Taken 2 | . . . . . 1 . . 1 . . Unknown Exits Taken 6 | 1 1 1 1 1 . . 1 . . . Scrap Searched 1 | . . 1 . . . . . . . . Spaces Dug . | . . . . . . . . . . . Terrain Destroyed 108 | . . 15 . . . 21 . 25 . 47 Melee . | . . . . . . . . . . . Projectile . | . . . . . . . . . . . AOE 108 | . . 15 . . . 21 . 25 . 47 Terrain Rammed . | . . . . . . . . . . . Walls Destroyed . | . . . . . . . . . . . Machines Disabled . | . . . . . . . . . . . Actions | -11 -10 -10 -9 -9 -8 -8 -8 -8 -7 -7 --------- Run | Scr Mat Min Mat Min Mat Gar Mat Sto Fac Was Total 4810 | 1 590 573 624 334 724 511 249 960 190 54 Wait 619 | . 50 27 188 43 163 10 . 138 . . Move 3603 | 1 459 505 357 255 447 434 238 694 181 32 Hop . | . . . . . . . . . . . Pick Up 51 | . 6 6 6 2 10 2 1 15 2 1 Fast Attach 24 | . 2 . 4 1 3 . . 13 1 . Attach 31 | . 1 1 4 4 10 4 . 3 2 2 Detach 7 | . . . 2 . 3 . . 1 1 . Swap 66 | . 15 4 11 . 14 3 4 12 1 2 Drop 58 | . 2 6 7 1 8 . 3 28 2 1 Fire 317 | . 50 20 39 28 63 48 3 50 . 16 Melee . | . . . . . . . . . . . Ram 2 | . 1 1 . . . . . . . . Kick 1 | . . . 1 . . . . . . . Crush 21 | . 4 3 5 . 3 . . 6 . . Escape Stasis 10 | . . . . . . 10 . . . . Rewire . | . . . . . . . . . . . Trap . | . . . . . . . . . . . Miscellaneous . | . . . . . . . . . . . Route ------- -11/Scrapyard -10/Materials (discovered 3 exits: *Mat x2 / *Min) -10/Mines -9/Materials (discovered 2 exits: *Mat / *Min) -9/Mines -8/Materials (discovered 2 exits: *Fac / Gar) -8/Garrison (discovered 3 exits: *Mat x3) -8/Materials -8/Storage (discovered 2 exits: *Fac / [*Rec]) -7/Factory -7/Waste History --------- Turn | Location | Event 1 | -11/Scrapyard | Discovered new exit (range 1) 3 | -11/Scrapyard | Entered Materials 196 | -10/Materials | Discovered new exit (range 4) 318 | -10/Materials | Build established: Mutant 635 | -10/Materials | Repaired Lgt. Treads 656 | -10/Materials | Discovered new exit (range 16) 758 | -10/Materials | Discovered new exit (range 16) 865 | -10/Materials | Entered Mines 898 | -10/Mines | Discovered new exit (range 5) 1204 | -10/Mines | Assisted by bots powering up and referring to "LRC-V3" 1325 | -10/Mines | Found the Drone Emporium 1331 | -10/Mines | Found Prototype Device 1390 | -10/Mines | Core integrity fell below 50% 1434 | -10/Mines | Escorted by a lone wolf Derelict 1828 | -10/Mines | Entered Materials 1828 | -9/Materials | Accompanied by 1 ally 1828 | -9/Materials | Evolved 2 slots: Propulsion x1, Utility x1 2125 | -9/Materials | Build established: Hauler-Mutant 2373 | -9/Materials | Discovered new exit (range 15) 2698 | -9/Materials | Repaired Lgt. Treads 2782 | -9/Materials | Discovered new exit (range 6) 2791 | -9/Materials | Entered Mines 2792 | -9/Mines | Assembled infested the area 2871 | -9/Mines | Build established: Scavenger-Mutant 2905 | -9/Mines | Discovered new exit (range 10) 3073 | -9/Mines | Learned location of Zion (-6) 3374 | -9/Mines | Entered Materials 3374 | -8/Materials | Evolved 2 slots: Utility x1, Weapon x1 3447 | -8/Materials | Garrison activated, responded to threat 3676 | -8/Materials | Build established: Hauler-Tank 3794 | -8/Materials | Lost 4 parts (1p1u2w) 4154 | -8/Materials | Discovered new exit (range 7) 4288 | -8/Materials | Repaired Lgt. Treads 4659 | -8/Materials | Identified exit to Garrison 4661 | -8/Materials | Entered Garrison 4760 | -8/Garrison | Triggered checkpoint 5005 | -8/Garrison | Destroyed 9 combat bots 5023 | -8/Garrison | Build established: Hauler-Skirmisher 5102 | -8/Garrison | Discovered new exit (range 10) 5140 | -8/Garrison | Triggered checkpoint 5271 | -8/Garrison | Garrison Relay disabled 5441 | -8/Garrison | Discovered new exit (range 10) 5544 | -8/Garrison | Triggered checkpoint 5630 | -8/Garrison | Discovered new exit (range 15) 5707 | -8/Garrison | Installed Relay Interface Framework 5722 | -8/Garrison | Entered Materials 5830 | -8/Materials | Discovered new exit (range 10) 6182 | -8/Materials | Entered Storage 6399 | -8/Storage | Repaired Arm. Treads 6550 | -8/Storage | Identified exit to Factory 7248 | -8/Storage | Core integrity fell below 50% 7392 | -8/Storage | Met a pair of Derelict thieves 7525 | -8/Storage | Destroyed 7 combat bots 7659 | -8/Storage | Used back door to open Recycling access 7659 | -8/Storage | Discovered new exit (range 4) 7897 | -8/Storage | Entered Factory 7897 | -7/Factory | Evolved 2 slots: Utility x2 8015 | -7/Factory | Discovered new exit (range 9) 8031 | -7/Factory | Identified exit to Lower Caves 8270 | -7/Factory | Sucked down chute 8270 | -7/Factory | Entered Waste 8271 | -7/Waste | Met a frightened Derelict 8307 | -7/Waste | Spotted C-40 Crusher 8315 | -7/Waste | Destroyed C-40 Crusher 8336 | -7/Waste | Spotted C-40 Crusher 8344 | -7/Waste | Spotted C-40 Crusher 8346 | -7/Waste | Spotted C-40 Crusher 8362 | -7/Waste | Crushed by Compactor (1 part destroyed, 1 dropped) 8365 | -7/Waste | Crushed by Compactor (1 part destroyed, 1 dropped) 8368 | -7/Waste | Crushed by Compactor (1 part destroyed, 1 dropped) 8371 | -7/Waste | Crushed by Compactor (1 part destroyed, 1 dropped) 8374 | -7/Waste | Crushed by Compactor (1 part destroyed, 1 dropped) 8376 | -7/Waste | Self-destructed Last Messages --------------- 08352_ 32-76M(g) Carbon-fiber Leg crushed. 08352_ 32-76M(g) Lgt. Angular Momentum Engine crushed. 08352_ 32-76M(g) suffers critical hit. 08352_ 32-76M(g) destroyed. 08357_ The unstable cave ceiling collapses. 08357_ Carbon-fiber Leg crushed. 08362_ The unstable cave ceiling collapses. 08362_ Imp. Light Armor Plating crushed. 08362_ Arm. Treads crushed. 08365_ Rnf. Deuterium Engine crushed. 08365_ Cld. Plasma Cannon crushed. 08368_ The unstable cave ceiling collapses. 08368_ Lgt. Armor Plating crushed. 08368_ Lgt. Deuterium Engine crushed. 08371_ Lgt. Treads crushed. 08371_ Adv. Sensor Array crushed. 08372_ The unstable cave ceiling collapses. 08374_ Adv. Sensor Array crushed. 08374_ Enh. Autogun crushed. 08374_ Lgt. Treads crushed. Map ----- +----------------------------------------------------+ | ?????????????????????????????????????????????????? | | ?????????????????????????????????????????????????? | | ?????????????????????????????????????????????????? | | ?????????????????????????????????????????????????? | | ?????????????????????????????????????????????????? | | ?????????????????????????????????????????????????? | | ?????????????????????????????????????????????????? | | ?????????????????????????????????????????????????? | | ????????????????????????? ????????????????????? | | ????????????????????????# ????????????????????? | | ???????????????????????## #???????????????????? | | ??????????????????????? #???????????????????? | | ??????????????????????? |#???????????????????? | | ???????????????????????? #???????????????????? | | ???????????????????????? ! #???????????????????? | | ????????????????????????# #???????????????????? | | ????????????????????????# #???????????????????? | | ????????????????????????# #????#???? #???????? | | ????????????????????????# ###? ### #???????? | | ??????????????????????### # #???????? | | ??????????????????????# ??????? | | ??????????????????????# CC ??????? | | ??????????????????????# CC ??????? | | ??????????????????????# CC ??????? | | ??????????????????????## ]CCCC #???????? | | ??????????############# #@CC ## # #???????? | | ??????????# ### ###????????????? | | ??????????# ## % ####??????????????? | | ??????????# ! ### [ #????????????????? | | ??????????# ###????????????????? | | ??????????# ###?????????????????? | | ??????????# #?????????????????? | | ??????????# ###?????????????????? | | ??????????# #### #???????????????????? | | ??????????# #??# #???????????????????? | | ??????????# #??# #???????????????????? | | ??????????############??# #???????????????????? | | ????????????????????????# #???????????????????? | | ????????????????????????######???????????????????? | | ?????????????????????????????????????????????????? | | ?????????????????????????????????????????????????? | | ?????????????????????????????????????????????????? | | ?????????????????????????????????????????????????? | | ?????????????????????????????????????????????????? | | ?????????????????????????????????????????????????? | | ?????????????????????????????????????????????????? | | ?????????????????????????????????????????????????? | | ?????????????????????????????????????????????????? | | ?????????????????????????????????????????????????? | | ?????????????????????????????????????????????????? | +----------------------------------------------------+ Best States ------------- Heat Dissipation 34 Energy Generation 16 Energy Capacity 290 Matter Stores 300 Matter Capacity 300 Sight Range 16 Robot Scan Range 16 Terrain Scan Density 10 Armor Coverage 150 Weapon Shielding 66 Evasion (%) 40 Recoil Reduction 3 Item Schematics ----------------- None Robot Schematics ------------------ None Fabricated ------------ Nothing Alien Tech Used ----------------- None Achievements -------------- None Challenges ------------ None Game ------ Seed ThermalImprovedCoupler Manual? 0 Play Time 00:54:16 Cumulative 62.2 hours Start 2020.10.18 @ 18:50:07 End 2020.10.18 @ 19:50:12 Sessions 1 Manual Loads 0 Difficulty Rogue Special Mode None Game No. 56 Rogue 56 Adventurer 0 Explorer 0 Win Type - Total 0 Types 0/0/0/0/0/0/0/0/0 Lore% 39 Gallery% 46 Achievement% 37 Wizard Run 0 Options --------- ASCII 1 Keyboard 1 Movement Arrows Keybinds 0 Fullscreen 1 Font 24/Proggy Map View 76x50 Tactical HUD 1 Map Filters NONE Filters NONE Steam 1 RUN: 0c451ee1-4457-4561-91c0-ffde9b12a7f8